Cogmind - Beta 16 @@@ ROGUE MODE // 2026.02.05 @ 06:50:27 Player: souux Result: Destroyed by S-10 Pest with Light Assault Rifle Performance ------------- Evolutions (0) 0 Regions Visited (2) 400 Robots Destroyed (56) 280 Value Destroyed (1348) 1348 Prototype IDs (3) 60 Alien Tech Used (0) 0 Bonus (0) 0 TOTAL SCORE: 2088 Bonus ------- None Cogmind --------- Core Integrity 0/250 Matter 300/300 Energy 229/250 System Corruption 0% Temperature Cool (0) Movement Treading (160) Location -10/Subcaves Parts ------- > --- POWER (1) -------- Ion Engine > --- PROPULSION (2) --- Light Treads Light Treads > --- UTILITY (2) ------ Improved Heat Sink Large Storage Unit > --- WEAPON (2) ------- Advanced Beam Cannon Subdweller Beam Cannon > --- INVENTORY (15) --- Ion Engine Subdweller Power Source Light Treads Light Treads Light Treads Wheel Wheel High-capacity Matter Pod (200) Structural Scanner Seismic Detector Scrap Shield Advanced Beam Cannon Advanced Beam Cannon Grenade Launcher Peak State ------------ > --- POWER ------------ Ion Engine > --- PROPULSION ------- Light Treads Light Treads > --- UTILITY ---------- Improved Heat Sink Large Storage Unit > --- WEAPON ----------- Advanced Beam Cannon Advanced Beam Cannon > --- INVENTORY -------- Ion Engine Light Treads Light Treads Light Treads Light Treads Aluminum Leg Wheel Wheel High-capacity Matter Pod Structural Scanner Seismic Detector Advanced Beam Cannon Advanced Beam Cannon Subdweller Beam Cannon Grenade Launcher [Rating: 15] Favorites ----------- Power Ion Engine Engine Ion Engine Propulsion Light Treads Treads Light Treads Wheel Wheel Utility Improved Heat Sink Device Improved Heat Sink Storage Large Storage Unit Weapon Advanced Beam Cannon Energy Gun Medium Laser Energy Cannon Advanced Beam Cannon Ballistic Gun Assault Rifle Build | -11 -10 -10 ------- Run | Yrd Mat Sub Slots Evolved . | . . . Power . | . . . Propulsion . | . . . Utility . | . . . Weapon . | . . . Parts Attached 25 | 8 14 3 Power 4 | 1 3 . Engine 4 | 1 3 . Core . | . . . Reactor . | . . . Propulsion 9 | 2 5 2 Treads 6 | . 4 2 Leg . | . . . Wheel 3 | 2 1 . Hover . | . . . Flight . | . . . Utility 5 | 2 3 . Device 2 | 1 1 . Storage 3 | 1 2 . Processor . | . . . Hackware . | . . . Protection . | . . . Artifact . | . . . Weapon 7 | 3 3 1 Energy Gun 2 | 1 1 . Energy Cannon 3 | . 2 1 Ballistic Gun 2 | 2 . . Ballistic Cannon . | . . . Launcher . | . . . Special Weapon . | . . . Impact Weapon . | . . . Slashing Weapon . | . . . Piercing Weapon . | . . . Special Melee Weapon . | . . . Unidentified Prototypes . | . . . Parts Lost 6 | . 4 2 Power . | . . . Propulsion 4 | . 2 2 Utility . | . . . Weapon 2 | . 2 . Highest Loss Streak 2 | . 2 1 To Critical Strikes . | . . . Average Backups 12 | 5 11 14 Power 1 | . 1 1 Propulsion 6 | 3 7 6 Utility 2 | . 2 3 Weapon 2 | . 1 3 Tool/Special . | . . . Unused Backups 17 | . 5 12 Power 3 | . 1 2 Propulsion 6 | . 2 4 Utility 3 | . . 3 Weapon 5 | . 2 3 Tool/Special . | . . . Average Slot Usage (%) 99 | . 99 100 Engine 14 | . 14 14 Treads 26 | . 25 28 Device 13 | . 13 14 Storage 14 | . 14 14 Energy Gun 3 | . 6 . Energy Cannon 19 | . 11 28 Ballistic Gun 4 | . 9 . Peak Build Rating 15 | 7 14 15 Average Rating 12 | 5 10 14 On Entrance 7 | . 7 14 Avg Prop Armor Cover (%) 6 | . 6 . Naked Turns . | . . . Heaviest Build 38 | 15 34 38 Greatest Support 40 | 20 40 40 Greatest Overweight (x) 1 | . 1 . Average Overweight (x) . | . . . Largest Inventory Capacity 15 | 8 15 15 Average Capacity 13 | 7 12 15 Most Carried 15 | 8 15 15 Average Carried 13 | 5 11 14 Final Capacity 15 | 8 15 15 Final Carried 15 | 8 15 15 Class Distribution -------------------- 56% | Mutant 43% | Scavenger-Mutant Dominant Class ---------------- Scavenger-Mutant | -10/Materials Mutant | -10/Subcaves Resources | -11 -10 -10 ----------- Run | Yrd Mat Sub Matter Collected 1078 | 340 708 30 Remotely . | . . . Salvage Created 1941 | 200 1293 448 Parts 128 | 16 76 36 Haulers Intercepted 2 | . 2 . Recyclers Shooed 1 | . 1 . Parts Field Recycled . | . . . Retrieved Matter . | . . . Parts Self-Destructed 15 | . . 15 Prevented . | . . . Parts Restored . | . . . Kills | -11 -10 -10 ------- Run | Yrd Mat Sub Combat Hostiles Destroyed 41 | . 28 13 Guns 21 | . 21 . Cannons 17 | . 6 11 Classes Destroyed 10 | 2 6 2 Worker 1 | . 1 . Builder 1 | . 1 . Tunneler 6 | 5 1 . Hauler 2 | . 2 . Recycler 2 | 1 1 . Watcher 3 | . 3 . Swarmer 10 | . 6 4 Grunt 22 | . 22 . Sentry 1 | . . 1 Subdweller 8 | . . 8 Best Kill Streak 6 | 5 6 2 Combat Bots Only 5 | . 5 2 Max Kills in Single Turn 2 | 1 2 1 Gunslinging 1 | . 1 . Exploded . | . . . Melee . | . . . Uniques/NPCs Destroyed . | . . . Combat | -11 -10 -10 -------- Run | Yrd Mat Sub Hostile Shots Fired 155 | . 97 58 Missed 29 | . 18 11 Hits 126 | . 79 47 Projectile 126 | . 79 47 AOE 1 | . . 1 Critical Strikes 1 | . . 1 Damage Taken 1601 | 6 814 781 Core 256 | . 112 144 Absorbed by Shields . | . . . Regen/Repaired (Parts) 97 | . 97 . Core Remaining (%) 100 | 100 . . Volleys Fired 138 | 10 85 43 Largest 2 | 2 2 2 Hottest 148 | 40 136 148 Shots Fired 275 | 20 169 86 Gun 161 | 20 141 . Cannon 114 | . 28 86 Launcher . | . . . Special . | . . . Kinetic 119 | 20 99 . Thermal 156 | . 70 86 Explosive . | . . . Electromagnetic . | . . . Robot Hit Streak 15 | 9 13 15 Robot Miss Streak 4 | 1 4 4 Penetration Max . | . . . Secondary Targets 2 | . 2 . Max Gunslinging Chain 1 | . 1 . Shots Hit Robots 163 | 14 108 41 Core Hits 72 | 6 52 14 Critical Kills 3 | . 1 2 Critical Parts Destroyed 1 | . 1 . Critical Strikes 8 | . 6 2 Burn 4 | . 4 . Meltdown 3 | . 1 2 Destroy 1 | . 1 . Melee Attacks . | . . . Impact . | . . . Slashing . | . . . Piercing . | . . . Sneak Attacks . | . . . Combat Hostiles . | . . . Follow-up Attacks . | . . . Damage Inflicted 2694 | 187 1633 874 Guns 1414 | 174 1240 . Cannons 1264 | . 390 874 Explosions . | . . . Melee . | . . . Ramming 16 | 13 3 . Kinetic 1040 | 174 866 . Thermal 1638 | . 764 874 Explosive . | . . . Electromagnetic . | . . . Impact . | . . . Slashing . | . . . Piercing . | . . . Highest Corruption . | . . . Average Corruption . | . . . Corruption Purged . | . . . Corruption Blocked . | . . . Overload Shots . | . . . Overflow Damage 64 | . 26 38 Projectiles 64 | . 26 38 Explosions . | . . . Melee . | . . . Knockbacks . | . . . Impact . | . . . Kinetic . | . . . Secondary . | . . . Self-Inflicted Damage 6 | 6 . . Shots . | . . . Rammed 2 | 1 1 . Targets Rammed 2 | 1 1 . Kicked . | . . . Crushed . | . . . Highest Temperature 138 | . 138 18 Average Temperature 31 | . 31 13 Received Heat Transfer 459 | . 366 93 Siege Activations . | . . . Martial Activations . | . . . Shielding Activations . | . . . Robots Disrupted . | . . . Combat Hostiles . | . . . Robots Corrupted . | . . . Combat Hostiles . | . . . Parts Fried . | . . . Impact Corruptions . | . . . Robots Melted 3 | . 1 2 Combat Hostiles 3 | . 1 2 Parts Melted 6 | . 2 4 Heat Transferred 3626 | . 2109 1517 Parts Sabotaged . | . . . Parts Stolen . | . . . Parts Stripped . | . . . Power Chain Reactions . | . . . Alert | -11 -10 -10 ------- Run | Yrd Mat Sub Maximum Alert Level 1 | . 1 . Low Security (%) 24 | 100 20 . Level 1 75 | . 79 . Level 2 . | . . . Level 3 . | . . . Level 4 . | . . . Level 5 . | . . . High Security . | . . . Max Security . | . . . Peak Influence 348 | 15 348 . Initial . | . . . Average 223 | 4 236 . Influence Increases 1231 | 30 956 245 Destroy 0b10 Robot/C 660 | . 560 100 Destroy 0b10 Robot/NC 75 | 30 45 . Destroy Leader 130 | . 120 10 Successful Hack 47 | . 47 . Select Force Hacks 60 | . 60 . Disable Machine 15 | . 15 . Destroy Structure 4 | . 4 . Partial Spotted 15 | . 15 . Lose Combat Pursuer 225 | . 90 135 Influence Decreases 1184 | 30 623 531 Entered New Map 161 | . . 161 Time Decay 973 | 30 583 360 Lost Part 50 | . 40 10 Squads Dispatched 8 | . 8 . Investigation 6 | . 6 . Extermination . | . . . Reinforcement 2 | . 2 . Assault . | . . . Garrison . | . . . Intercept . | . . . Searches Triggered . | . . . Construction Impeded . | . . . Haulers Reinforced . | . . . Active Scanning Responses . | . . . Cargo Convoy Interrupts . | . . . Stealth | -11 -10 -10 --------- Run | Yrd Mat Sub Distress Signals 2 | . 2 . Communications Jammed . | . . . Distress Signals . | . . . Times Spotted 67 | . 44 23 Peak Tracking Total 6 | . 6 4 Tactical Retreats 11 | . 5 6 Traps | -11 -10 -10 ------- Run | Yrd Mat Sub Traps Triggered 6 | . 3 3 Indirectly . | . . . Trap Hack Attempts . | . . . Triggered . | . . . Disarmed . | . . . Reprogrammed . | . . . Reused . | . . . Traps Extracted . | . . . Installed . | . . . Triggered . | . . . Machines | -11 -10 -10 ---------- Run | Yrd Mat Sub Machines Disabled 1 | . 1 . Max in Single Turn 1 | . 1 . Machines Repaired . | . . . Machines Dismantled . | . . . Machines Sabotaged . | . . . Overloaded Fab Kills . | . . . Hacking | -11 -10 -10 --------- Run | Yrd Mat Sub Machines Accessed 11 | . 10 1 Terminals 7 | . 7 . Fabricators . | . . . Repair Stations 1 | . 1 . Recycling Units 2 | . 2 . Scanalyzers . | . . . Garrison Access . | . . . Total Hacks 39 | . 36 3 Successful 27 | . 24 3 Failed 12 | . 12 . Catastrophic 1 | . 1 . Database Lockouts . | . . . Manual 19 | . 19 . Terminals 30 | . 30 . Fabricators . | . . . Repair Stations 4 | . 4 . Recycling Units 2 | . 2 . Scanalyzers . | . . . Garrison Access . | . . . Terminal Hacks 11 | . 8 3 Record 3 | . . 3 Part Schematic 2 | . 2 . Prototype ID Bank 2 | . 2 . Terminal Index 1 | . 1 . Locate Traps 2 | . 2 . Surveillance Status 1 | . 1 . Fabricator Hacks . | . . . Repair Station Hacks 4 | . 4 . Scan Component 2 | . 2 . Repair 2 | . 2 . Recycling Unit Hacks . | . . . Scanalyzer . | . . . Garrison Access Hacks . | . . . Unauthorized Hacks 12 | . 12 . Terminals 10 | . 10 . Botnet 4 | . 4 . Skim 6 | . 6 . Fabricators . | . . . Repair Stations . | . . . Recycling Units 2 | . 2 . Tunnel 2 | . 2 . Scanalyzers . | . . . Garrison Access . | . . . Data Cores Recovered . | . . . Used . | . . . Hacking Detections 8 | . 8 . Full Trace Events 1 | . 1 . Feedback Events . | . . . Feedback Blocked . | . . . Robot Schematics Acquired . | . . . Robots Built . | . . . Authchips . | . . . Time . | . . . Total Robot Build Rating . | . . . Part Schematics Acquired 2 | . 2 . Parts Built . | . . . Authchips . | . . . Time . | . . . Total Part Build Rating . | . . . Part Studies Acquired . | . . . Parts Repaired 2 | . 2 . Time 64 | . 64 . Parts Recycled . | . . . Recycled Matter . | . . . Retrieved Matter . | . . . Retrieved Components . | . . . Parts Scanalyzed . | . . . Part Schematics Acquired . | . . . Parts Damaged . | . . . Bothacking | -11 -10 -10 ------------ Run | Yrd Mat Sub Used RIF Installer . | . . . Robots Hacked . | . . . Non-combat . | . . . Combat . | . . . Robot Hacks Applied . | . . . Relay Couplers Released . | . . . Fabnet Peak Effective % . | . . . Robots Rewired . | . . . Allies Hacked . | . . . Hacks Repelled . | . . . Allies | -11 -10 -10 -------- Run | Yrd Mat Sub Total Allies . | . . . Largest Group . | . . . Highest-Rated Group . | . . . Highest-Rated Ally . | . . . Total Orders . | . . . Ally Attacks . | . . . Total Damage . | . . . Kills . | . . . Allies Corrupted . | . . . Allies Melted . | . . . Intel | -11 -10 -10 ------- Run | Yrd Mat Sub Active Infowar (turns) 658 | 33 625 . Seismic 658 | 33 625 . Robot Analysis Total . | . . . Derelict Logs Recovered 1 | . . 1 Drone Launches . | . . . Drone Recoveries . | . . . Exploration | -11 -10 -10 ------------- Run | Yrd Mat Sub Turns Passed 3661 | 110 1804 1747 Spaces Moved 1870 | 72 817 981 Core 1 | 1 . . Treads 1735 | . 754 981 Legs . | . . . Wheels 134 | 71 63 . Hover . | . . . Flight . | . . . Fastest Speed 50 | 50 80 160 Average Speed 154 | 79 153 160 Slowest Speed 160 | 80 160 160 Overloaded Moves . | . . . Propulsion Burnouts . | . . . Robots Hopped . | . . . Potential Cave-ins . | . . . Cave-ins Triggered . | . . . Exploration Rate (%) 57 | 5 99 68 Regions Visited 2 Branch Regions 1 Pre-discovered Areas 5 | . 5 . Known Exits Taken . | . . . Unknown Exits Taken 2 | 1 1 . Scrap Searched 4 | . . 4 Spaces Dug . | . . . Terrain Destroyed 4 | . . 4 Melee . | . . . Projectile 4 | . . 4 AOE . | . . . Terrain Rammed . | . . . Walls Destroyed . | . . . Machines Disabled . | . . . Actions | -11 -10 -10 --------- Run | Yrd Mat Sub Total 2363 | 101 1192 1070 Wait 278 | 3 237 38 Move 1869 | 72 816 981 Hop . | . . . Pick Up 27 | 7 17 3 Fast Attach 12 | 8 4 . Attach 6 | . 4 2 Detach 1 | 1 . . Swap 16 | . 15 1 Drop 15 | . 13 2 Fire 138 | 10 85 43 Melee . | . . . Ram . | . . . Kick . | . . . Crush 1 | . 1 . Escape Stasis . | . . . Rewire . | . . . Trap . | . . . Miscellaneous . | . . . Route ------- -11/Scrapyard -10/Materials (discovered 5 exits: *Mat x3 / [*Min] / *Sub) -10/Subcaves (discovered 1 exit: [*Mat]) History --------- Turn | Location | Event 24 | -11/Scrapyard | Discovered new exit (range 16) 111 | -11/Scrapyard | Entered Materials 306 | -10/Materials | Build established: Mutant 684 | -10/Materials | Discovered new exit (range 3) 772 | -10/Materials | Discovered new exit (range 7) 820 | -10/Materials | Build established: Scavenger-Mutant 1114 | -10/Materials | Discovered new exit (range 14) 1177 | -10/Materials | Discovered new exit (range 10) 1389 | -10/Materials | Identified exit to Materials 1460 | -10/Materials | Learned Storage trap positions 1523 | -10/Materials | Learned location of 2 exits from Materials 1577 | -10/Materials | Learned location of 1 exit from Recycling 1653 | -10/Materials | Learned location of Storage (-7) 1676 | -10/Materials | Learned location of Recycling (-7) 1746 | -10/Materials | Learned location of 2 exits from Materials 1855 | -10/Materials | Repaired Imp. Heat Sink 1882 | -10/Materials | Repaired Lgt. Treads 1915 | -10/Materials | Entered Subcaves 1916 | -10/Subcaves | Approached by a straggling Scientist 1920 | -10/Subcaves | Learned Materials emergency access door positions 2095 | -10/Subcaves | Discovered new exit (range 14) 2350 | -10/Subcaves | Core integrity fell below 50% 2629 | -10/Subcaves | Visited Clippyterm 2633 | -10/Subcaves | Learned Factory emergency access door positions 2668 | -10/Subcaves | Build established: Mutant 2711 | -10/Subcaves | Shifting Twisted Machinery released Sub. Beam Cannon 2734 | -10/Subcaves | Shifting Twisted Machinery released Battle Rifle 3022 | -10/Subcaves | Core integrity fell below 20% 3381 | -10/Subcaves | Shifting Twisted Machinery released Sub. Monowheel 3409 | -10/Subcaves | Shifting Twisted Machinery released Scrap Shield 3662 | -10/Subcaves | Destroyed by S-10 Pest with Light Assault Rifle Last Messages --------------- 03217_ Found Scrap Shield. 03217_ Found 47 Matter. 03219_ Searching scrap... 03219_ Found Sub. Machine Gun. 03219_ Found Flamer. 03220_ Searching scrap... 03220_ Found Lgt. Humpback. 03235_ Dropped Aluminum Leg. 03235_ Acquired Scrap Shield. 03265_ Destroyed Lgt. Assault Rifle. 03265_ S-10 Pest destroyed. 03274_ Flight Unit fries itself beyond repair. 03275_ Lgt. Ion Engine fries itself beyond repair. Sub. Monowheel falls loose from the Twisted Machinery. Scrap Shield falls loose from the Twisted Machinery. 03660_ S-10 Pest destroyed. Map ----- +----------------------------------------------------+ | ???????????######??????# "##### ##???? | | ???????????????????????# ""## "" #???? | | ???????????????????????### " ####???? | | ?????????????????????????# "" #??????? | | ???????????????????????### ####"" #??????? | | ???????????????????????# #??##"" ##?????? | | ???????????????????# ###?##"" ###???? | | ???????????????????# """" #??##" #???? | | ??????????????????# ## " " #???##"###???? | | ????????????????????????### " " ##???###?????? | | ??????????????????????????# """# #???????????? | | ?????????????????????????# ### ##???????????? | | ???????????????????????? ??# #???????????? | | ???????????????????????? ??# #####????????? | | ?????????????????????????? ??## #????????? | | ??????###???##??????????? ##??## #????????? | | ?????## ### #?????????# ???# #????????? | | ?????#" #??????????# ##### ##???????? | | ?????#" ##?????????# # #???????? | | ?????#" #???????### ###???????? | | ????## ############ # ### ##?????????? | | ???## ##" ## ####### ##??????????? | | ???#""" "" ## ##?#### #?#####?????? | | ???#""" ## #???## ### #?????? | | ???#""" ### ## # ##### ## ##????? | | ???# ## #?######## ##@ ### #????? | | ??# ### ##????????######sss #?# #????? | | #?## ## ##?????????????# ## ### #????? | | ## "" # "" #?????????? ## ##????? | | """"" ##" #?????? && ###???? | | # ### ##?? %&! #???? | | #?###### ##??"" ###&## ####???? | | ##???## ##???? ##### ##?##### ###??????? | | #??## ##????? ??????###???????## #????????? | | #?## ##??????"???????????????????## ########?? | | ### ##????????????????????????????## #?? | | ## # #?????????????????????????????## #?? | | # ####???????????????????????#####?## #?? | | ##??????????????????????????#"""### ##?? | | ##???????????????????????????#"" ## #??? | | #????????????????????????????#"X #??? | | # #???????????????????????????#"" ## #??? | | ?# #??????????????????????????#"""## #??? | | ??##??????????????????????????###### #??? | | ???????????????????????????????????# ##??? | | ???????????????????????????????????## ## ##??? | | ????????????????????????????????????##### #??? | | ???????????????????????????????????????## #??? | | ???????????????????????????????????????# ##??? | | ???????????????????????????????????????# ##???? | +----------------------------------------------------+ Best States ------------- Heat Dissipation 39 Energy Generation 10 Energy Capacity 250 Matter Stores 300 Matter Capacity 300 Sight Range 16 Terrain Scan Density 10 Evasion (%) 44 Recoil Reduction 2 Item Schematics ----------------- Hcp. Storage Unit | -10/Materials | Hacked Med. Storage Unit | -10/Materials | Hacked Robot Schematics ------------------ None Fabricated ------------ Nothing Repaired ---------- Imp. Heat Sink | 65% | -10/Materials Lgt. Treads | 40% | -10/Materials Studied --------- None Alien Tech Used ----------------- None Achievements -------------- None Challenges ------------ None Game ------ Seed HellfireSmallBattery Manual? 0 Play Time 00:28:56 Cumulative 172.6 hours Start 2026.02.03 @ 23:56:19 End 2026.02.05 @ 06:50:27 Sessions 3 Manual Loads 0 Difficulty Rogue Special Mode None Game No. 120 Rogue 120 Adventurer 0 Explorer 0 Win Type - Total 3 Types 3/0/0/0/0/0/0/0/0/0 Lore% 49 Gallery% 53 Achievement% 42 Wizard Run 0 Options --------- Layout 2 ASCII 0 Keyboard 0 Movement Mouse Keybinds 0 Fullscreen 1 Font 24/Smallcaps Map View 50x44 Zoom Use 0% Tactical HUD 1 Map Filters NONE Filters NONE Steam 1 RUN: 98e2049a-90b3-423e-a366-e36364229a8c